Workbook

Sheet Sheet1
A1: Order Validity | B1: Ord Status | C1: LN SO# | D1: Pos | E1: Proj No | F1: Committed | G1: Machine # | H1: Client Name | I1: Project Name | J1: Item Description | K1: System/PO | L1: DIA1 | M1: DIA2 | N1: Ends | O1: System | P1: Pressure | Q1: Order Qty | R1: Pro Qty | S1: Bal Qty | T1: Transfer Qty | U1: Rate/shift [pcs] | V1: # of Shifts | W1: Total Rate [pcs/day] | X1: Duratin Numeric | Y1: Duration | Z1: Start | AA1: Finish | AC1: Sum of duration | AD1: Start Date | AE1: End Date | AF1: Days | AG1: Weekend Days
G2: Rotating Machine 1 (3 Shift) | H2: Rotating Machine 1 (3 Shift) | I2: ELBOWS (25Ø-125Ø) - | Y2: 327.96 days | Z2: 2025-03-25
Q3: 764 | R3: 132 | S3: 632 | T3: 93 | U3: 3.62 | V3: 3 | W3: 6 | X3: 86.83 | Y3: 86.83 days | Z3: Wed 29/01/25 | AA3: Fri 09/05/25
B4: CA | E4: 40M001333 | G4: Rotating Machine 1 | I4: Linde - Wesseling_14 | J4: Elb 80R1.5/90 EST32 TBTB | Q4: 150 | R4: 111 | S4: =Q4-R4 -> 39 | T4: 0 | U4: 3 | V4: 3 | W4: =U4*V4 -> 9 | X4: =S4/W4 -> 4.333333333 | Y4: 4.83 days | Z4: =Z2 -> 2025-03-25 | AA4: =Z4+X4 -> 2025-03-29T08:00:00 | AC4: =SUM(X$4:X4) -> 4.333333333 | AD4: =Z2 -> 2025-03-25 | AE4: =getEndDate(Z$2,AC4,6,2) -> 2025-03-31T08:00:00 | AF4: =AE4-AD4 -> 6.333333333 | AG4: =AF4-X4 -> 2
B5: CA | E5: 40P000358 | G5: Rotating Machine 1 | I5: B107/2 Vessel | J5: Elb 100R1.5/30 EMT50/16 CBCB | Q5: 7 | R5: 0 | S5: 7 | T5: 0 | U5: 1 | V5: 3 | W5: 3 | X5: 2.333333333 | Y5: 4.83 days | Z5: =AA4 -> 2025-03-29T08:00:00 | AA5: =Z5+X5 -> 2025-03-31T16:00:00 | AC5: =SUM(X$4:X5) -> 6.666666667 | AD5: =AE4 -> 2025-03-31T08:00:00 | AE5: =getEndDate(Z$2,AC5,6,2) -> 2025-04-02T16:00:00 | AF5: =AE5-AD5 -> 2.333333333 | AG5: =AF5-X5 -> -4.850786439e-12
B6: CA | E6: 40P000358 | G6: Rotating Machine 1 | I6: B107/2 Vessel | J6: Elb 100R1.5/45 EMT50/16 CBCB | Q6: 10 | R6: 0 | S6: 10 | T6: 0 | U6: 1 | V6: 3 | W6: 3 | X6: 3.333333333 | Y6: 4.83 days | Z6: 2025-03-31T16:00:00 | AA6: =Z6+X6 -> 2025-04-04 | AC6: =SUM(X$4:X6) -> 10 | AD6: =AE5 -> 2025-04-02T16:00:00 | AE6: 2025-04-07 | AF6: 4.333333333 | AG6: 1
B7: CA | E7: 40P000358 | G7: Rotating Machine 1 | I7: B107/2 Vessel | J7: Elb 65R1.5/90 EMT50/16 CBCB | Q7: 1 | R7: 0 | S7: 1 | T7: 0 | U7: 1 | V7: 3 | W7: 3 | X7: 0.3333333333 | Y7: 4.83 days | Z7: 2025-04-04 | AA7: =Z7+X7 -> 2025-04-04T08:00:00 | AC7: =SUM(X$4:X7) -> 10.33333333 | AD7: 2025-04-07 | AE7: 2025-04-07T08:00:00 | AF7: 0.3333333333 | AG7: 2.425337708e-12
B8: CA | E8: 40P000356 | G8: Rotating Machine 1 | I8: B107/1Vessel | J8: Elb 100R1.5/30 EMT50/16 CBCB | Q8: 7 | R8: 0 | S8: 7 | T8: 0 | U8: 1 | V8: 3 | W8: 3 | X8: 2.333333333 | Y8: 4.83 days | Z8: 2025-04-04T08:00:00 | AA8: =Z8+X8 -> 2025-04-06T16:00:00 | AC8: =SUM(X$4:X8) -> 12.66666667 | AD8: 2025-04-07T08:00:00 | AE8: 2025-04-10T16:00:00 | AF8: 3.333333333 | AG8: 1
B9: CA | E9: 40P000356 | G9: Rotating Machine 1 | I9: B107/1Vessel | J9: Elb 100R1.5/45 EMT50/16 CBCB | Q9: 10 | R9: 0 | S9: 10 | T9: 0 | U9: 1 | V9: 3 | W9: 3 | X9: 3.333333333 | Y9: 4.83 days | Z9: 2025-04-06T16:00:00 | AA9: =Z9+X9 -> 2025-04-10 | AC9: =SUM(X$4:X9) -> 16 | AD9: 2025-04-10T16:00:00 | AE9: 2025-04-14 | AF9: 3.333333333 | AG9: 2.425171175e-12
B10: CA | E10: 40P000356 | G10: Rotating Machine 1 | I10: B107/1Vessel | J10: Elb 100R1.5/90 EMT50/16 CBCB | Q10: 14 | R10: 0 | S10: 14 | T10: 0 | U10: 2 | V10: 3 | W10: 6 | X10: 2.333333333 | Y10: 4.83 days | Z10: 2025-04-10 | AA10: =Z10+X10 -> 2025-04-12T08:00:00 | AC10: =SUM(X$4:X10) -> 18.33333333 | AD10: 2025-04-14 | AE10: 2025-04-18T08:00:00 | AF10: 4.333333333 | AG10: 2
B11: CA | E11: 40P000304 | G11: Rotating Machine 1 | I11: 6331 | J11: Elb 125R1.5/15 EST25 CBCB | Q11: 1 | R11: 0 | S11: 1 | T11: 0 | U11: 1 | V11: 3 | W11: 3 | X11: 0.3333333333 | Y11: 4.83 days | Z11: 2025-04-12T08:00:00 | AA11: =Z11+X11 -> 2025-04-12T16:00:00 | AC11: =SUM(X$4:X11) -> 18.66666667 | AD11: 2025-04-18T08:00:00 | AE11: 2025-04-18T16:00:00 | AF11: 0.3333333333 | AG11: -4.850619906e-12
B12: CH | E12: 16P000744 | G12: Rotating Machine 1 | I12: Ohaji South Project | J12: Elbow 100R1.5/90° (Molded) EST25 Bar TBTB | Q12: 35 | R12: 0 | S12: =Q12-R12 -> 35 | T12: 0 | U12: 2 | V12: 3 | W12: =U12*V12 -> 6 | X12: =S12/W12 -> 5.833333333 | Y12: 4.83 days | Z12: 2025-04-12T16:00:00 | AA12: =Z12+X12 -> 2025-04-18T12:00:00 | AC12: =SUM(X$4:X12) -> 24.5 | AD12: 2025-04-18T16:00:00 | AE12: 2025-04-25T12:00:00 | AF12: 6.833333333 | AG12: 1
B13: CH | E13: 16P000744 | G13: Rotating Machine 1 | I13: Ohaji South Project | J13: Elbow 50R1.5/90° (Molded) EST40 Bar TBTB | Q13: 18 | R13: 0 | S13: =Q13-R13 -> 18 | T13: 0 | U13: 2 | V13: 3 | W13: =U13*V13 -> 6 | X13: =S13/W13 -> 3 | Y13: 4.83 days | Z13: 2025-04-18T12:00:00 | AA13: =Z13+X13 -> 2025-04-21T12:00:00 | AC13: =SUM(X$4:X13) -> 27.5 | AD13: 2025-04-25T12:00:00 | AE13: 2025-04-29T12:00:00 | AF13: 4 | AG13: 1
B14: CH | E14: 16P000744 | G14: Rotating Machine 1 | I14: Ohaji South Project | J14: Elbow 80R1.5/90° (Molded) EST32 Bar TBTB | Q14: 25 | R14: 0 | S14: 25 | T14: 0 | U14: 2 | V14: 3 | W14: =U14*V14 -> 6 | X14: =S14/W14 -> 4.166666667 | Y14: 4.83 days | Z14: 2025-04-21T12:00:00 | AA14: =Z14+X14 -> 2025-04-25T16:00:00 | AC14: =SUM(X$4:X14) -> 31.66666667 | AD14: 2025-04-29T12:00:00 | AE14: 2025-05-04T16:00:00 | AF14: 5.166666667 | AG14: 1
B15: CH | E15: 16P000744 | G15: Rotating Machine 1 | I15: Ohaji South Project | J15: Elbow 25R1.5/90° (Molded) EST50 Bar TBTB | Q15: 6 | R15: 0 | S15: 6 | T15: 0 | U15: 2 | V15: 3 | W15: 6 | X15: 1 | Y15: 4.83 days | Z15: 2025-04-25T16:00:00 | AA15: =Z15+X15 -> 2025-04-26T16:00:00 | AC15: =SUM(X$4:X15) -> 32.66666667 | AD15: 2025-05-04T16:00:00 | AE15: 2025-05-06T16:00:00 | AF15: 2 | AG15: 1
B16: CH | E16: 16P000744 | G16: Rotating Machine 1 | I16: Ohaji South Project | J16: Elbow 100R1.5/45° (Molded) EST25 Bar TBTB | Q16: 2 | R16: 0 | S16: 2 | T16: 0 | U16: 2 | V16: 3 | W16: 6 | X16: 0.3333333333 | Y16: 4.83 days | Z16: 2025-04-26T16:00:00 | AA16: =Z16+X16 -> 2025-04-27 | AC16: =SUM(X$4:X16) -> 33 | AD16: 2025-05-06T16:00:00 | AE16: 2025-05-07 | AF16: 0.3333333333 | AG16: 2.425337708e-12
B17: CH | E17: 16P000641 | G17: Rotating Machine 1 | I17: Supply &install GRE Connection | J17: Elbow 100R1.5/90° (Molded) EST25 Bar TBTB | Q17: 2 | R17: 0 | S17: 2 | T17: 0 | U17: 2 | V17: 3 | W17: 6 | X17: 0.3333333333 | Y17: 4.83 days | Z17: 2025-04-27 | AA17: =Z17+X17 -> 2025-04-27T08:00:00 | AC17: =SUM(X$4:X17) -> 33.33333333 | AD17: 2025-05-07 | AE17: 2025-05-07T08:00:00 | AF17: 0.3333333333 | AG17: 2.425337708e-12
B18: CH | E18: 16P000882 | G18: Rotating Machine 1 | I18: GPC Alhamd Station | J18: Elb 80R1.5/45 EST32 TBTB | Q18: 4 | R18: 0 | S18: 4 | T18: 0 | U18: 2 | V18: 3 | W18: 6 | X18: 0.6666666667 | Y18: 4.83 days | Z18: 2025-04-27T08:00:00 | AA18: =Z18+X18 -> 2025-04-28 | AC18: =SUM(X$4:X18) -> 34 | AD18: 2025-05-07T08:00:00 | AE18: 2025-05-08 | AF18: 0.6666666667 | AG18: -2.425282197e-12
B19: CH | E19: 16P000882 | G19: Rotating Machine 1 | I19: GPC Alhamd Station | J19: Elb 100R1.5/90 EST25 TBTB | Q19: 7 | R19: 0 | S19: 7 | T19: 0 | U19: 2 | V19: 3 | W19: 6 | X19: 1.166666667 | Y19: 4.83 days | Z19: 2025-04-28 | AA19: =Z19+X19 -> 2025-04-29T04:00:00 | AC19: =SUM(X$4:X19) -> 35.16666667 | AD19: 2025-05-08 | AE19: 2025-05-09T04:00:00 | AF19: 1.166666667 | AG19: -2.42539322e-12
B20: CH | E20: 16P000882 | G20: Rotating Machine 1 | I20: GPC Alhamd Station | J20: Elb 80R1.5/90 EST32 TBTB | Q20: 38 | R20: 0 | S20: 38 | T20: 0 | U20: 2 | V20: 3 | W20: 6 | X20: 6.333333333 | Y20: 4.83 days | Z20: 2025-04-29T04:00:00 | AA20: =Z20+X20 -> 2025-05-05T12:00:00 | AC20: =SUM(X$4:X20) -> 41.5 | AD20: 2025-05-09T04:00:00 | AE20: 2025-05-17T12:00:00 | AF20: 8.333333333 | AG20: 2
B21: CH | E21: 16P000882 | G21: Rotating Machine 1 | I21: GPC Alhamd Station | J21: Elb 50R1.5/90 EST40 TBTB | Q21: 24 | R21: 0 | S21: 24 | T21: 0 | U21: 2 | V21: 3 | W21: 6 | X21: 4 | Y21: 4.83 days | Z21: 2025-05-05T12:00:00 | AA21: =Z21+X21 -> 2025-05-09T12:00:00 | AC21: =SUM(X$4:X21) -> 45.5 | AD21: 2025-05-17T12:00:00 | AE21: 2025-05-22T12:00:00 | AF21: 5 | AG21: 1
L22: 219.39 | M22: 0 | Q22: =SUM(Q4:Q21) -> 361 | R22: =SUM(R4:R21) -> 111 | S22: =SUM(S4:S21) -> 250 | T22: =SUM(T4:T21) -> 0 | X22: =SUM(X4:X21) -> 45.5 | Y22: 219.35 days | Z22: =Z2 -> 2025-03-25 | AA22: =Z22+X22 -> 2025-05-09T12:00:00 | AF22: =SUM(AF4:AF21) -> 58.5 | AG22: =SUM(AG4:AG21) -> 13
G23: Rotating Machine 2 (3 Shift) | H23: Rotating Machine 1 (3 Shift) | I23: Couplers - Reducers (25Ø-900Ø) -
B25: CA | E25: 40M001333 | G25: Rotating Machine 2 | I25: Linde - Wesseling_14 | J25: RedEcc 80x50 EST32 TBTB | Q25: 10 | R25: 9 | S25: 1 | U25: 1 | V25: 3 | W25: =U25*V25 -> 3 | X25: =S25/W25 -> 0.3333333333 | Y25: 5 days | Z25: =Z2 -> 2025-03-25 | AA25: =Z25+X25 -> 2025-03-25T08:00:00
B26: CA | E26: 40M001333 | G26: Rotating Machine 2 | I26: Linde - Wesseling_14 | J26: RedEcc 300x200 EST16 TBTB | Q26: 30 | R26: 28 | S26: 2 | U26: 1 | V26: 3 | W26: 3 | X26: 0.6666666667 | Y26: 5 days | Z26: =AA25 -> 2025-03-25T08:00:00 | AA26: =Z26+X26 -> 2025-03-26
B27: CA | E27: 40P000351 | G27: Rotating Machine 2 | I27: Chantiers E35 | J27: Coupler 65 EMT50/16 CBCB | Q27: 2 | R27: 0 | S27: 2 | U27: 1 | V27: 3 | W27: 3 | X27: 0.6666666667 | Y27: 5 days | Z27: =AA26 -> 2025-03-26 | AA27: =Z27+X27 -> 2025-03-26T16:00:00
B28: CA | E28: 40P000351 | G28: Rotating Machine 2 | I28: Chantiers E35 | J28: Coupler 150 EMT50/16 CBCB | Q28: 3 | R28: 0 | S28: 3 | U28: 1 | V28: 3 | W28: 3 | X28: 1 | Y28: 5 days | Z28: 2025-03-26T16:00:00 | AA28: =Z28+X28 -> 2025-03-27T16:00:00
B29: CA | E29: 40P000351 | G29: Rotating Machine 2 | I29: Chantiers E35 | J29: Coupler 200 EMT20/10 CBCB | Q29: 1 | R29: 0 | S29: 1 | U29: 1 | V29: 3 | W29: 3 | X29: 0.3333333333 | Y29: 5 days | Z29: 2025-03-27T16:00:00 | AA29: =Z29+X29 -> 2025-03-28
A30: GEI | B30: CH | C30: 01R016072 | D30: 38 | E30: 16P000744 | F30: 2025-02-15 | G30: Rotating Machine 2 | I30: Ohaji South Project | J30: Concentric Reducer 100x50 EST25 Bar TBTB | K30: D65023436 | Q30: 1 | R30: 0 | S30: 1 | T30: 0 | U30: 1 | V30: 3 | W30: =U30*V30 -> 3 | X30: 0.3333333333 | Y30: 0.25 days | Z30: 2025-03-28 | AA30: =Z30+X30 -> 2025-03-28T08:00:00
A31: AUH | B31: CH | C31: 01E012284 | D31: 11 | E31: 16P000744 | F31: 2025-02-20 | G31: Rotating Machine 2 | I31: Ohaji South Project | J31: Concentric Reducer 100x80 EST25 Bar TBTB | K31: D65023406 | Q31: 1 | R31: 0 | S31: 1 | T31: 0 | U31: 1 | V31: 3 | W31: 3 | X31: 0.3333333333 | Y31: 0.5 days | Z31: 2025-03-28T08:00:00 | AA31: =Z31+X31 -> 2025-03-28T16:00:00
A32: GEI | B32: CH | C32: 01R015959 | D32: 16 | E32: 16P000882 | F32: 2025-03-10 | G32: Rotating Machine 2 | I32: GPC Alhamd Station | J32: RedCon 100x50 EST25 TBTB | K32: D65023354 | Q32: 4 | R32: 0 | S32: 4 | T32: 0 | U32: 1 | V32: 3 | W32: 3 | X32: 1.333333333 | Y32: 5 days | Z32: 2025-03-28T16:00:00 | AA32: =Z32+X32 -> 2025-03-30
A33: KSA | B33: CH | C33: 01E012280 | D33: 3 | E33: 16P000882 | F33: 2025-03-10 | G33: Rotating Machine 2 | I33: GPC Alhamd Station | J33: RedCon 100x80 EST25 TBTB | Q33: 2 | R33: 0 | S33: 2 | T33: 0 | U33: 1 | V33: 3 | W33: 3 | X33: 0.6666666667 | Y33: 3 days | Z33: 2025-03-30 | AA33: =Z33+X33 -> 2025-03-30T16:00:00
A34: GEI | B34: CH | C34: 01R015959 | D34: 16 | E34: 16P000882 | F34: 2025-03-15 | G34: Rotating Machine 2 | I34: GPC Alhamd Station | J34: Coupler 50 EST40 TBTB | Q34: 7 | R34: 0 | S34: 7 | T34: 0 | U34: 1 | V34: 3 | W34: 3 | X34: 2.333333333 | Y34: 5 days | Z34: 2025-03-30T16:00:00 | AA34: =Z34+X34 -> 2025-04-02
A35: GEI | B35: CH | C35: 01R015959 | D35: 16 | E35: 16P000882 | F35: 2025-03-20 | G35: Rotating Machine 2 | I35: GPC Alhamd Station | J35: Coupler 50 EST40 TBTB | Q35: 6 | R35: 0 | S35: 6 | T35: 0 | U35: 1 | V35: 3 | W35: 3 | X35: 2 | Y35: 5 days | Z35: 2025-04-02 | AA35: =Z35+X35 -> 2025-04-04
A36: GEI | B36: CH | C36: 01R015959 | D36: 16 | E36: 16P000882 | F36: 2025-03-25 | G36: Rotating Machine 2 | I36: GPC Alhamd Station | J36: Coupler 50 EST40 TBTB | Q36: 4 | R36: 0 | S36: 4 | T36: 0 | U36: 1 | V36: 3 | W36: 3 | X36: 1.333333333 | Y36: 2.5 days | Z36: 2025-04-04 | AA36: =Z36+X36 -> 2025-04-05T08:00:00
A37: KSA | B37: CH | C37: 01E012280 | D37: 3 | E37: 16P000882 | F37: 2025-03-20 | G37: Rotating Machine 2 | I37: GPC Alhamd Station | J37: Coupler 50 EST40 TBTB | Q37: 2 | R37: 0 | S37: 2 | T37: 0 | U37: 1 | V37: 3 | W37: 3 | X37: 0.6666666667 | Y37: 3.13 days | Z37: 2025-04-05T08:00:00 | AA37: =Z37+X37 -> 2025-04-06
A38: GEI | B38: CH | C38: 01R016110 | D38: 39 | E38: 16P000882 | F38: 5-Mar -15April | G38: Rotating Machine 2 | I38: Produced Water Treatment | J38: Coupler 80 EST32 TBTB | Q38: 2 | R38: 0 | S38: 2 | T38: 0 | U38: 1 | V38: 3 | W38: 3 | X38: 0.6666666667 | Y38: 1.25 days | Z38: 2025-04-06 | AA38: =Z38+X38 -> 2025-04-06T16:00:00
A39: GEI | B39: CH | C39: 01R016110 | D39: 40 | E39: 16P000882 | F39: 5-Mar -15April | G39: Rotating Machine 2 | I39: GPC Alhamd Station | J39: Coupler 100 EST25 TBTB | Q39: 2 | R39: 0 | S39: 2 | T39: 0 | U39: 1 | V39: 3 | W39: 3 | X39: 0.6666666667 | Y39: 0.25 days | Z39: 2025-04-06T16:00:00 | AA39: =Z39+X39 -> 2025-04-07T08:00:00
A40: GEI | B40: CH | C40: 01R016110 | D40: 41 | E40: 16P000882 | F40: 5-Mar -15April | G40: Rotating Machine 2 | I40: Produced Water Treatment | J40: Coupler 25 EST50 TBTB | Q40: 20 | R40: 0 | S40: 20 | T40: 0 | U40: 1 | V40: 3 | W40: 3 | X40: 6.666666667 | Y40: 0.75 days | Z40: 2025-04-07T08:00:00 | AA40: =Z40+X40 -> 2025-04-14
A41: 2025-01-30 | B41: CH | E41: 16P000882 | F41: 2025-03-15 | G41: Rotating Machine 2 | I41: Produced Water Treatment | J41: Coupler 25 EST50 TBTB | Q41: 10 | R41: 0 | S41: 10 | T41: 0 | U41: 1 | V41: 3 | W41: 3 | X41: 3.333333333 | Y41: 25 days | Z41: 2025-04-14 | AA41: =Z41+X41 -> 2025-04-17T08:00:00
A42: 2025-02-15 | B42: CH | E42: 16P000882 | F42: 2025-04-30 | G42: Rotating Machine 2 | I42: Produced Water Treatment | J42: Coupler 25 EST50 TBTB | Q42: 5 | R42: 0 | S42: 5 | T42: 0 | U42: 1 | V42: 3 | W42: 3 | X42: 1.666666667 | Y42: 1 day | Z42: 2025-04-17T08:00:00 | AA42: =Z42+X42 -> 2025-04-19
A43: GEI | B43: CH | E43: 16P000882 | G43: Rotating Machine 2 | I43: Produced Water Treatment | J43: Coupler 25 EST50 TBTB | Q43: 2 | R43: 0 | S43: 2 | T43: 0 | U43: 1 | V43: 3 | W43: 3 | X43: 0.6666666667 | Y43: 29.75 days | Z43: 2025-04-19 | AA43: =Z43+X43 -> 2025-04-19T16:00:00
A44: GEI | B44: CH | C44: 01B000629 | D44: 216 | E44: 16P000882 | G44: Rotating Machine 2 | I44: GPC Alhamd Station | J44: Coupler 80 EST32 TBTB | Q44: 9 | R44: 0 | S44: 9 | T44: 0 | U44: 1 | V44: 3 | W44: 3 | X44: 3 | Y44: 6.88 days | Z44: 2025-04-19T16:00:00 | AA44: =Z44+X44 -> 2025-04-22T16:00:00
Q45: =SUM(Q30:Q44) -> 77 | R45: =SUM(R30:R44) -> 0 | S45: =SUM(S30:S44) -> 77 | T45: =SUM(T30:T44) -> 0 | X45: =SUM(X25:X44) -> 28.66666667 | Y45: 327.96 days | Z45: =Z2 -> 2025-03-25 | AA45: =Z45+X45 -> 2025-04-22T16:00:00
G46: Rotating Machine 3 (3 Shift) | H46: Rotating Machine 2 (3 Shift) | I46: ELBOWS (150 Ø-250Ø) -
B48: CA | E48: 40M001333 | G48: Rotating Machine 3 | I48: Linde - Wesseling_14 | J48: Elb 150R1.5/90 EST20 TBTB | Q48: 70 | R48: 66 | S48: =Q48-R48 -> 4 | T48: 0 | U48: 2 | V48: 3 | W48: =U48*V48 -> 6 | X48: =S48/W48 -> 0.6666666667 | Y48: 16 days | Z48: =Z2 -> 2025-03-25 | AA48: =Z48+X48 -> 2025-03-25T16:00:00
B49: CA | E49: 40M001333 | G49: Rotating Machine 3 | I49: Linde - Wesseling_14 | J49: Elb 200R1.0/90 EST20 TBTB | Q49: 30 | R49: 15 | S49: 15 | T49: 0 | U49: 2 | V49: 3 | W49: 6 | X49: 2.5 | Y49: 16 days | Z49: =AA48 -> 2025-03-25T16:00:00 | AA49: =Z49+X49 -> 2025-03-28T04:00:00
B50: CA | E50: 40M001333 | G50: Rotating Machine 3 | I50: Linde - Wesseling_14 | J50: Elb 250R1.0/90 EST16 TBTB | Q50: 2 | R50: 0 | S50: 2 | T50: 0 | U50: 1 | V50: 3 | W50: 3 | X50: 0.6666666667 | Y50: 16 days | Z50: =AA49 -> 2025-03-28T04:00:00 | AA50: =Z50+X50 -> 2025-03-28T20:00:00
B51: CA | E51: 40P000351 | G51: Rotating Machine 3 | I51: Chantiers E35 | J51: Elb 150R1.5/90 EMT50/16 CBCB | Q51: 1 | R51: 0 | S51: 1 | T51: 0 | U51: 2 | V51: 3 | W51: 6 | X51: 0.1666666667 | Y51: 16 days | Z51: 2025-03-28T20:00:00 | AA51: =Z51+X51 -> 2025-03-29
B52: CA | E52: 40P000351 | G52: Rotating Machine 3 | I52: Chantiers E35 | J52: Elb 200R1.5/90 EMT20/10 CBCB | Q52: 1 | R52: 0 | S52: 1 | T52: 0 | U52: 1 | V52: 3 | W52: 3 | X52: 0.3333333333 | Y52: 16 days | Z52: 2025-03-29 | AA52: =Z52+X52 -> 2025-03-29T08:00:00
A53: GEI | B53: CH | C53: 01B000865 | D53: 32 | E53: 16P000834 | G53: Rotating Machine 3 | I53: Agiba | J53: Elbow 250R1.5/90° (Molded) EST20 Bar TBTB | Q53: 10 | R53: 0 | S53: =Q53-R53 -> 10 | T53: 0 | U53: 2 | V53: 3 | W53: =U53*V53 -> 6 | X53: =S53/W53 -> 1.666666667 | Y53: 1.6 days | Z53: 2025-03-29T08:00:00 | AA53: =Z53+X53 -> 2025-03-31
A54: GEI | B54: CH | C54: 01B000906 | D54: 242 | E54: 16P000834 | G54: Rotating Machine 3 | I54: Agiba | J54: Elbow 250R1.5/45° (Molded) EST25 Bar TBTB | Q54: 6 | R54: 0 | S54: 6 | T54: 0 | U54: 2 | V54: 3 | W54: 6 | X54: 1 | Y54: 16 days | Z54: 2025-03-31 | AA54: =Z54+X54 -> 2025-04-01
A55: GEI | B55: CH | C55: 01B001022 | D55: 28 | E55: 16P000641 | G55: Rotating Machine 3 | I55: Supply &install GRE Connection | J55: Elbow 150R1.5/90° (Molded) EST20 Bar TBTB | Q55: 4 | R55: 0 | S55: 4 | T55: 0 | U55: 3 | V55: 3 | W55: 9 | X55: 0.4444444444 | Y55: 1 day | Z55: 2025-04-01 | AA55: =Z55+X55 -> 2025-04-01T10:40:00
A56: GEI | B56: CH | C56: 01B001022 | D56: 29 | E56: 16P000882 | G56: Rotating Machine 3 | I56: GPC Alhamd Station | J56: Elb 200R1.5/45 EST20 TBTB | Q56: 2 | R56: 0 | S56: 2 | T56: 0 | U56: 3 | V56: 3 | W56: 9 | X56: 0.2222222222 | Y56: 8.5 days | Z56: 2025-04-01T10:40:00 | AA56: =Z56+X56 -> 2025-04-01T16:00:00
A57: GEI | B57: CH | C57: 01B001022 | D57: 30 | E57: 16P000882 | G57: Rotating Machine 3 | I57: Produced Water Treatment | J57: Elb 250R1.5/45 EST16 TBTB | Q57: 2 | R57: 0 | S57: 2 | T57: 0 | U57: 2 | V57: 3 | W57: 6 | X57: 0.3333333333 | Y57: 1 day | Z57: 2025-04-01T16:00:00 | AA57: =Z57+X57 -> 2025-04-02
A58: GEI | B58: CH | C58: 01B001033 | D58: 22 | E58: 16P000882 | G58: Rotating Machine 3 | I58: GPC Alhamd Station | J58: Elb 200R1.5/90 EST20 TBTB | Q58: 41 | R58: 0 | S58: 41 | T58: 0 | U58: 3 | V58: 3 | W58: 9 | X58: 4.555555556 | Y58: 0.4 days | Z58: 2025-04-02 | AA58: =Z58+X58 -> 2025-04-06T13:20:00
A59: GEI | B59: CH | C59: 01B001033 | D59: 24 | E59: 16P000882 | G59: Rotating Machine 3 | I59: GPC Alhamd Station | J59: Elb 150R1.5/45 EST20 TBTB | Q59: 2 | R59: 0 | S59: 2 | T59: 0 | U59: 3 | V59: 3 | W59: 9 | X59: 0.2222222222 | Y59: 0.4 days | Z59: 2025-04-06T13:20:00 | AA59: =Z59+X59 -> 2025-04-06T18:40:00
A60: GEI | B60: CH | C60: 01B001048 | D60: 61 | E60: 16P000882 | G60: Rotating Machine 3 | I60: GPC Alhamd Station | J60: Elb 250R1.5/90 EST16 TBTB | Q60: 25 | R60: 0 | S60: 25 | T60: 0 | U60: 2 | V60: 3 | W60: 6 | X60: 4.166666667 | Y60: 0.4 days | Z60: 2025-04-06T18:40:00 | AA60: =Z60+X60 -> 2025-04-10T22:40:00
A61: GEI | B61: CH | C61: 01B001052 | D61: 28 | E61: 16P000882 | G61: Rotating Machine 3 | I61: GPC Alhamd Station | J61: Elb 150R1.5/90 EST20 TBTB | Q61: 32 | R61: 0 | S61: 32 | T61: 0 | U61: 3 | V61: 3 | W61: 9 | X61: 3.555555556 | Y61: 0.2 days | Z61: 2025-04-10T22:40:00 | AA61: =Z61+X61 -> 2025-04-14T12:00:00
Q62: =SUM(Q53:Q61) -> 124 | R62: =SUM(R53:R61) -> 0 | S62: =SUM(S53:S61) -> 124 | T62: =SUM(T53:T61) -> 0 | X62: =SUM(X48:Y61) -> 20.5 | Y62: 327.96 days | Z62: =Z2 -> 2025-03-25 | AA62: =Z62+X62 -> 2025-04-14T12:00:00
G63: Rotating Machine 4 (3 Shift) | H63: Rotating Machine 2 (3 Shift) | I63: ELBOWS (300 Ø-400Ø) -
B65: CA | E65: 40M001333 | G65: Rotating Machine 4 | I65: Linde - Wesseling_14 | J65: Elb 300R1.0/90 EST16 TBTB | Q65: 30 | R65: 12 | S65: 18 | U65: 1 | V65: 3 | W65: =U65*V65 -> 3 | X65: =S65/W65 -> 6 | Y65: 2 days | Z65: =Z2 -> 2025-03-25 | AA65: =Z65+X65 -> 2025-03-31
B66: CA | E66: 40M001333 | G66: Rotating Machine 4 | I66: Linde - Wesseling_14 | J66: Elb 350R1.0/90 EST16 TBTB | Q66: 10 | R66: 9 | S66: 1 | U66: 1 | V66: 3 | W66: 3 | X66: =S66/W66 -> 0.3333333333 | Y66: 2 days | Z66: =AA65 -> 2025-03-31 | AA66: =Z66+X66 -> 2025-03-31T08:00:00
B67: CA | E67: 40M001333 | G67: Rotating Machine 4 | I67: Linde - Wesseling_14 | J67: Elb 400R1.5/90 EST16 TBTB | Q67: 10 | R67: 6 | S67: 4 | U67: 1 | V67: 3 | W67: =U67*V67 -> 3 | X67: 1.333333333 | Y67: 2 days | Z67: =AA66 -> 2025-03-31T08:00:00 | AA67: =Z67+X67 -> 2025-04-01T16:00:00
B68: CA | E68: 40P000304 | G68: Rotating Machine 4 | I68: 6331 | J68: Elb 400R1.5/15 EST8 CBCB | Q68: 1 | R68: 0 | S68: 1 | U68: 1 | V68: 3 | W68: 3 | X68: 0.3333333333 | Y68: 2 days | Z68: 2025-04-01T16:00:00 | AA68: =Z68+X68 -> 2025-04-02
A69: GEI | B69: CH | C69: 01R012504 | D69: 1 | E69: 16P000849 | G69: Rotating Machine 4 | I69: Fertial Annaba- UAN ligne | J69: Elbow 350R1.5/45° (Mitered) EST20 Bar PLPL | Q69: 30 | R69: 0 | S69: =Q69-R69 -> 30 | T69: 0 | U69: 1 | V69: 3 | W69: =U69*V69 -> 3 | X69: =S69/W69 -> 10 | Y69: 2 days | Z69: 2025-04-02 | AA69: =Z69+X69 -> 2025-04-12
A70: GEI | B70: CH | C70: 01B001033 | D70: 23 | E70: 16P000882 | G70: Rotating Machine 4 | I70: GPC Alhamd Station | J70: Elb 300R1.5/90 EST16 TBTB | Q70: 26 | R70: 0 | S70: 26 | T70: 0 | U70: 2 | V70: 3 | W70: 6 | X70: 4.333333333 | Y70: 0.9 days | Z70: 2025-04-12 | AA70: =Z70+X70 -> 2025-04-16T08:00:00
Q71: =SUM(Q53:Q70) -> 355 | R71: =SUM(R53:R70) -> 27 | S71: =SUM(S53:S70) -> 328 | T71: =SUM(T53:T70) -> 0 | U71: 1 | V71: 3 | W71: 3 | X71: =SUM(X65:X70) -> 22.33333333 | Z71: =Z2 -> 2025-03-25 | AA71: =Z71+X71 -> 2025-04-16T08:00:00
G72: Rotating Machine 5 (3 Shift) | H72: Rotating Machine 2 (3 Shift) | I72: ELBOWS (450Ø-600Ø) -
A73: AUH | G73: Rotating Machine 5 | K73: D65023190 | Q73: 0 | R73: 0 | S73: =Q73-R73 -> 0 | T73: 0 | U73: 0 | V73: 0 | W73: =U73*V73 -> 0 | X73: 0 | Y73: 0.5 days | Z73: =#REF! ->  | AA73: =Z73+X73 -> 
A74: GEI | G74: Rotating Machine 5 | K74: D65023435 | Q74: 0 | R74: 0 | S74: 0 | T74: 0 | U74: 0 | V74: 0 | W74: 0 | X74: 0 | Y74: 1 day | Z74: =AA73 ->  | AA74: =Z74+X74 -> 
Q75: =SUM(Q73:Q74) -> 0 | R75: =SUM(R73:R74) -> 0 | S75: =SUM(S73:S74) -> 0 | T75: =SUM(T73:T74) -> 0 | X75: =SUM(X73:X74) -> 0 | Y75: 226.5 days | Z75: =Z2 -> 2025-03-25 | AA75: =Z75+X75 -> 2025-03-25
G76: Rotating Machine 6 (3 Shift) | H76: Rotating Machine 2 (3 Shift) | I76: Tees ( 25 Ø-200 Ø)
B78: CA | E78: 40P000358 | G78: Rotating Machine 6 | I78: B107/2 Vessel | J78: Tee 100x65 EMT50/16 CBCB | Q78: 1 | R78: 0 | S78: 1 | U78: 1 | V78: 3 | W78: =U78*V78 -> 3 | X78: =S78/W78 -> 0.3333333333 | Y78: 2 days | Z78: =Z2 -> 2025-03-25 | AA78: =Z78+X78 -> 2025-03-25T08:00:00
B79: CA | E79: 40P000358 | G79: Rotating Machine 6 | I79: B107/2 Vessel | J79: Tee 65x65 EMT50/16 CBCB | Q79: 2 | R79: 0 | S79: 2 | U79: 1 | V79: 3 | W79: =U79*V79 -> 3 | X79: =S79/W79 -> 0.6666666667 | Y79: 0.75 days | Z79: =AA78 -> 2025-03-25T08:00:00 | AA79: =Z79+X79 -> 2025-03-26
B80: CA | E80: 40P000356 | G80: Rotating Machine 6 | I80: B107/1Vessel | J80: Tee 100x100 EMT50/16 CBCB | Q80: 10 | R80: 3 | S80: 7 | U80: 1 | V80: 3 | W80: 3 | X80: 2.333333333 | Y80: 0.75 days | Z80: =AA79 -> 2025-03-26 | AA80: =Z80+X80 -> 2025-03-28T08:00:00
B81: CA | E81: 40P000356 | G81: Rotating Machine 6 | I81: B107/1Vessel | J81: Tee 100x65 EMT50/16 CBCB | Q81: 1 | R81: 0 | S81: 1 | U81: 1 | V81: 3 | W81: 3 | X81: 0.3333333333 | Y81: 0.75 days | Z81: 2025-03-28T08:00:00 | AA81: =Z81+X81 -> 2025-03-28T16:00:00
A82: 2025-03-30 | B82: CH | E82: 16P000744 | G82: Rotating Machine 6 | I82: Ohaji South Project | J82: Tee 80x50 EST32 Bar TBTB | Q82: 6 | R82: 0 | S82: =Q82-R82 -> 6 | T82: 0 | U82: 1 | V82: 3 | W82: 3 | X82: 2 | Y82: 0.75 days | Z82: 2025-03-28T16:00:00 | AA82: =Z82+X82 -> 2025-03-30T16:00:00
A83: GEI | B83: CH | E83: 16P000744 | G83: Rotating Machine 6 | I83: Ohaji South Project | J83: Tee 80x25 EST32 Bar TBTB | Q83: 3 | R83: 0 | S83: =Q83-R83 -> 3 | T83: 0 | U83: 1 | V83: 3 | W83: 3 | X83: 1 | Y83: 7 days | Z83: 2025-03-30T16:00:00 | AA83: =Z83+X83 -> 2025-03-31T16:00:00
A84: 2025-06-30 | B84: CH | E84: 16P000744 | G84: Rotating Machine 6 | I84: Ohaji South Project | J84: Tee 100x100 EST25 Bar TBTB | Q84: 5 | R84: 0 | S84: 5 | T84: 0 | U84: 1 | V84: 3 | W84: 3 | X84: 1.666666667 | Y84: 0.25 days | Z84: 2025-03-31T16:00:00 | AA84: =Z84+X84 -> 2025-04-02T08:00:00
A85: 2025-06-30 | B85: CH | E85: 16P000744 | G85: Rotating Machine 6 | I85: Ohaji South Project | J85: Tee 100x80 EST25 Bar TBTB | Q85: 1 | R85: 0 | S85: 1 | T85: 0 | U85: 1 | V85: 3 | W85: 3 | X85: 0.3333333333 | Y85: 0.25 days | Z85: 2025-04-02T08:00:00 | AA85: =Z85+X85 -> 2025-04-02T16:00:00
A86: GEI | B86: CH | E86: 16P000744 | G86: Rotating Machine 6 | I86: Ohaji South Project | J86: Tee 80x80 EST32 Bar TBTB | Q86: 5 | R86: 0 | S86: 5 | T86: 0 | U86: 1 | V86: 3 | W86: 3 | X86: 1.666666667 | Y86: 2.5 days | Z86: 2025-04-02T16:00:00 | AA86: =Z86+X86 -> 2025-04-04T08:00:00
A87: GEI | B87: CH | E87: 16P000641 | G87: Rotating Machine 6 | I87: Supply &install GRE Connection | J87: Tee 150x100 EST20 Bar TBTB | Q87: 1 | R87: 0 | S87: 1 | T87: 0 | U87: 1 | V87: 3 | W87: 3 | X87: 0.3333333333 | Y87: 2.5 days | Z87: 2025-04-04T08:00:00 | AA87: =Z87+X87 -> 2025-04-04T16:00:00
A88: GEI | B88: CH | E88: 16P000882 | G88: Rotating Machine 6 | I88: GPC Alhamd Station | J88: Tee 80x80 EST32 TBTB | K88: Not to be released | Q88: 1 | R88: 0 | S88: 1 | T88: 0 | U88: 1 | V88: 3 | W88: 3 | X88: 0.3333333333 | Y88: 0.5 days | Z88: 2025-04-04T16:00:00 | AA88: =Z88+X88 -> 2025-04-05
A89: GEI | B89: CH | E89: 16P000882 | G89: Rotating Machine 6 | I89: GPC Alhamd Station | J89: Tee 150x80 EST20 TBTB | Q89: 2 | R89: 0 | S89: 2 | T89: 0 | U89: 1 | V89: 3 | W89: 3 | X89: 0.6666666667 | Y89: 1 day | Z89: 2025-04-05 | AA89: =Z89+X89 -> 2025-04-05T16:00:00
A90: GEI | B90: CH | E90: 16P000882 | G90: Rotating Machine 6 | I90: GPC Alhamd Station | J90: Tee 200x200 EST20 TBTB | Q90: 3 | R90: 0 | S90: 3 | T90: 0 | U90: 1 | V90: 3 | W90: 3 | X90: 1 | Y90: 2.25 days | Z90: 2025-04-05T16:00:00 | AA90: =Z90+X90 -> 2025-04-06T16:00:00
A91: GEI | B91: CH | E91: 16P000882 | G91: Rotating Machine 6 | I91: Produced Water Treatment | J91: Tee 80x50 EST32 TBTB | Q91: 15 | R91: 0 | S91: 15 | T91: 0 | U91: 1 | V91: 3 | W91: 3 | X91: 5 | Y91: 3.75 days | Z91: 2025-04-06T16:00:00 | AA91: =Z91+X91 -> 2025-04-11T16:00:00
A92: GEI | B92: CH | E92: 16P000882 | G92: Rotating Machine 6 | I92: Produced Water Treatment | J92: Tee 200x80 EST20 TBTB | Q92: 9 | R92: 0 | S92: 9 | T92: 0 | U92: 1 | V92: 3 | W92: 3 | X92: 3 | Y92: 2.25 days | Z92: 2025-04-11T16:00:00 | AA92: =Z92+X92 -> 2025-04-14T16:00:00
A93: GEI | B93: CH | E93: 16P000882 | G93: Rotating Machine 6 | I93: GPC Alhamd Station | J93: Tee 150x150 EST20 TBTB | Q93: 8 | R93: 0 | S93: 8 | T93: 0 | U93: 1 | V93: 3 | W93: 3 | X93: 2.666666667 | Y93: 2.5 days | Z93: 2025-04-14T16:00:00 | AA93: =Z93+X93 -> 2025-04-17T08:00:00
A94: GEI | B94: CH | E94: 16P000882 | G94: Rotating Machine 6 | I94: GPC Alhamd Station | J94: Tee 200x100 EST20 TBTB | Q94: 7 | R94: 0 | S94: 7 | T94: 0 | U94: 1 | V94: 3 | W94: 3 | X94: 2.333333333 | Y94: 2 days | Z94: 2025-04-17T08:00:00 | AA94: =Z94+X94 -> 2025-04-19T16:00:00
Q95: =SUM(Q78:Q94) -> 80 | R95: =SUM(R78:R94) -> 3 | S95: =SUM(S78:T94) -> 77 | T95: =SUM(T79:T94) -> 0 | X95: =SUM(X78:X94) -> 25.66666667 | Z95: =Z26 -> 2025-03-25T08:00:00 | AA95: =Z95+X95 -> 2025-04-20
G96: Rotating Machine 7 (3 Shift) | H96: Rotating Machine 2 (3 Shift) | I96: Tees ( 250 Ø- 600 Ø)
B98: CA | E98: 40P000351 | G98: Rotating Machine 7 | I98: Chantiers E35 | J98: Tee 250x150 EMT20/10 CBCB | Q98: 1 | R98: 0 | S98: 1 | U98: 1 | V98: 3 | W98: =U98*V98 -> 3 | X98: =S98/W98 -> 0.3333333333 | Y98: 0.25 days | Z98: =Z2 -> 2025-03-25 | AA98: =Z98+X98 -> 2025-03-25T08:00:00
A99: AUH | B99: CH | E99: 16P000882 | G99: Rotating Machine 7 | I99: Produced Water Treatment | J99: Tee 250x80 EST16 TBTB | Q99: 8 | R99: 0 | S99: =Q99-R99 -> 8 | T99: 0 | U99: 1 | V99: 3 | W99: =U99*V99 -> 3 | X99: =S99/W99 -> 2.666666667 | Y99: 0.25 days | Z99: =AA98 -> 2025-03-25T08:00:00 | AA99: =Z99+X99 -> 2025-03-28
A100: GEI | B100: CH | E100: 16P000882 | G100: Rotating Machine 7 | I100: GPC Alhamd Station | J100: Tee 300x200 EST16 TBTB | Q100: 10 | R100: 0 | S100: =Q100-R100 -> 10 | T100: 0 | U100: 1 | V100: 3 | W100: =U100*V100 -> 3 | X100: 3.333333333 | Y100: 1.5 days | Z100: =AA99 -> 2025-03-28 | AA100: =Z100+X100 -> 2025-03-31T08:00:00
A101: GEI | B101: CH | E101: 16P000882 | G101: Rotating Machine 7 | I101: Produced Water Treatment | J101: Tee 250x200 EST16 TBTB | Q101: 2 | R101: 0 | S101: 2 | T101: 0 | U101: 1 | V101: 3 | W101: 3 | X101: 0.6666666667 | Y101: 0.25 days | Z101: 2025-03-31T08:00:00 | AA101: =Z101+X101 -> 2025-04-01
A102: GEI | B102: CH | E102: 16P000882 | G102: Rotating Machine 7 | I102: GPC Alhamd Station | J102: Tee 300x150 EST16 TBTB | Q102: 3 | R102: 0 | S102: 3 | T102: 0 | U102: 1 | V102: 3 | W102: 3 | X102: 1 | Y102: 0.25 days | Z102: 2025-04-01 | AA102: =Z102+X102 -> 2025-04-02
A103: GEI | B103: CH | E103: 16P000882 | G103: Rotating Machine 7 | I103: Produced Water Treatment | J103: Tee 300x250 EST16 TBTB | Q103: 1 | R103: 0 | S103: 1 | T103: 0 | U103: 1 | V103: 3 | W103: 3 | X103: 0.3333333333 | Y103: 1.75 days | Z103: 2025-04-02 | AA103: =Z103+X103 -> 2025-04-02T08:00:00
A104: GEI | B104: CH | E104: 16P000882 | G104: Rotating Machine 7 | I104: GPC Alhamd Station | J104: Tee 250x250 EST16 TBTB | Q104: 11 | R104: 0 | S104: 11 | T104: 0 | U104: 1 | V104: 3 | W104: 3 | X104: 3.666666667 | Y104: 3.5 days | Z104: 2025-04-02T08:00:00 | AA104: =Z104+X104 -> 2025-04-06
A105: GEI | B105: CH | E105: 16P000882 | G105: Rotating Machine 7 | I105: GPC Alhamd Station | J105: Tee 300x300 EST16 TBTB | Q105: 4 | R105: 0 | S105: 4 | T105: 0 | U105: 1 | V105: 3 | W105: 3 | X105: 1.333333333 | Y105: 22.25 days | Z105: 2025-04-06 | AA105: =Z105+X105 -> 2025-04-07T08:00:00
L106: 96.18 | M106: 0 | Q106: =SUM(Q98:Q105) -> 40 | R106: =SUM(R98:R105) -> 0 | S106: 40 | T106: 0 | X106: =SUM(X98:X105) -> 13.33333333 | Y106: 168.92 days | Z106: =Z2 -> 2025-03-25 | AA106: =Z106+X106 -> 2025-04-07T08:00:00
G107: Rotating Machine 8 (3 Shift) | H107: Rotating Machine 2 (3 Shift) | I107: Flanges (25Ø-250Ø) - | L107: 78.97 | M107: 0
B109: CA | E109: 40M001333 | G109: Rotating Machine 8 | I109: Linde - Wesseling_14 | J109: FL 50 EST40 FLTB PN40 | Q109: 60 | R109: 55 | S109: =Q109-R109 -> 5 | U109: 3 | V109: 3 | W109: =U109*V109 -> 9 | X109: =S109/W109 -> 0.5555555556 | Y109: 0.17 days | Z109: =Z2 -> 2025-03-25 | AA109: =Z109+X109 -> 2025-03-25T13:20:00
B110: CA | E110: 40M001333 | G110: Rotating Machine 8 | I110: Linde - Wesseling_14 | J110: FL 150 EST20 FLTB PN16 | Q110: 110 | R110: 57 | S110: 53 | U110: 3 | V110: 3 | W110: =U110*V110 -> 9 | X110: =S110/W110 -> 5.888888889 | Z110: =AA109 -> 2025-03-25T13:20:00 | AA110: =Z110+X110 -> 2025-03-31T10:40:00
B111: CA | E111: 40M001333 | G111: Rotating Machine 8 | I111: Linde - Wesseling_14 | J111: FL 200 EST20 FLTB PN16 | Q111: 40 | R111: 36 | S111: 4 | U111: 3 | V111: 3 | W111: 9 | X111: 0.4444444444 | Z111: =AA110 -> 2025-03-31T10:40:00 | AA111: =Z111+X111 -> 2025-03-31T21:20:00
B112: CA | E112: 40M001333 | G112: Rotating Machine 8 | I112: Linde - Wesseling_14 | J112: FL Blnd 80 EST32 FLFL PN40 | Q112: 50 | R112: 0 | S112: 50 | U112: 10 | V112: 3 | W112: 30 | X112: 1.666666667 | Z112: 2025-03-31T21:20:00 | AA112: =Z112+X112 -> 2025-04-02T13:20:00
B113: CA | E113: 40M001333 | G113: Rotating Machine 8 | I113: Linde - Wesseling_14 | J113: FL 50 EST40 FLTB PN40 | Q113: 70 | R113: 0 | S113: 70 | U113: 3 | V113: 3 | W113: 9 | X113: 7.777777778 | Z113: 2025-04-02T13:20:00 | AA113: =Z113+X113 -> 2025-04-10T08:00:00
B114: CA | E114: 40M001333 | G114: Rotating Machine 8 | I114: Linde - Wesseling_14 | J114: FL 80 EST32 FLTB PN40 | Q114: 120 | R114: 10 | S114: 110 | U114: 3 | V114: 3 | W114: 9 | X114: 12.22222222 | Z114: 2025-04-10T08:00:00 | AA114: =Z114+X114 -> 2025-04-22T13:20:00
B115: CA | E115: 40M001333 | G115: Rotating Machine 8 | I115: Linde - Wesseling_14 | J115: FL 150 EST20 FLTB PN16 | Q115: 140 | R115: 0 | S115: 140 | U115: 3 | V115: 3 | W115: 9 | X115: 15.55555556 | Z115: 2025-04-22T13:20:00 | AA115: =Z115+X115 -> 2025-05-08T02:40:00
B116: CA | E116: 40M001333 | G116: Rotating Machine 8 | I116: Linde - Wesseling_14 | J116: FL 200 EST20 FLTB PN16 | Q116: 20 | R116: 0 | S116: 20 | U116: 3 | V116: 3 | W116: 9 | X116: 2.222222222 | Z116: 2025-05-08T02:40:00 | AA116: =Z116+X116 -> 2025-05-10T08:00:00
B117: CA | E117: 40M001333 | G117: Rotating Machine 8 | I117: Linde - Wesseling_14 | J117: FL 250 EST16 FLTB PN16 | Q117: 10 | R117: 8 | S117: 2 | U117: 3 | V117: 3 | W117: 9 | X117: 0.2222222222 | Z117: 2025-05-10T08:00:00 | AA117: =Z117+X117 -> 2025-05-10T13:20:00
B118: CA | E118: 40P000358 | G118: Rotating Machine 8 | I118: B107/2 Vessel | J118: FL 100 EMT50/16 FLCB PN16 | Q118: 48 | R118: 9 | S118: 39 | U118: 3 | V118: 3 | W118: 9 | X118: 4.333333333 | Z118: 2025-05-10T13:20:00 | AA118: =Z118+X118 -> 2025-05-14T21:20:00
B119: CA | E119: 40P000358 | G119: Rotating Machine 8 | I119: B107/2 Vessel | J119: FL 65 EMT516 FLCB spec. | Q119: 7 | R119: 5 | S119: 2 | U119: 3 | V119: 3 | W119: 9 | X119: 0.2222222222 | Z119: 2025-05-14T21:20:00 | AA119: =Z119+X119 -> 2025-05-15T02:40:00
B120: CA | E120: 40P000356 | G120: Rotating Machine 8 | I120: B107/1Vessel | J120: FL 100 EMT50/16 FLCB PN16 | Q120: 48 | R120: 0 | S120: 48 | U120: 3 | V120: 3 | W120: 9 | X120: 5.333333333 | Z120: 2025-05-15T02:40:00 | AA120: =Z120+X120 -> 2025-05-20T10:40:00
B121: CA | E121: 40P000356 | G121: Rotating Machine 8 | I121: B107/1Vessel | J121: FL 65 EMT516 FLCB spec. | Q121: 7 | R121: 0 | S121: 7 | U121: 3 | V121: 3 | W121: 9 | X121: 0.7777777778 | Z121: 2025-05-20T10:40:00 | AA121: =Z121+X121 -> 2025-05-21T05:20:00
B122: CA | E122: 40P000351 | G122: Rotating Machine 8 | I122: Chantiers E35 | J122: FL Stub 200 EMT20/10 FLCB PN10 | Q122: 1 | R122: 0 | S122: 1 | U122: 3 | V122: 3 | W122: 9 | X122: 0.1111111111 | Z122: 2025-05-21T05:20:00 | AA122: =Z122+X122 -> 2025-05-21T08:00:00
B123: CA | E123: 40P000351 | G123: Rotating Machine 8 | I123: Chantiers E35 | J123: FL Stub 250 EMT20/10 FLCB PN10 | Q123: 1 | R123: 0 | S123: 1 | U123: 3 | V123: 3 | W123: 9 | X123: 0.1111111111 | Z123: 2025-05-21T08:00:00 | AA123: =Z123+X123 -> 2025-05-21T10:40:00
B124: CH | E124: 16P000834 | G124: Rotating Machine 8 | I124: Agiba | J124: Flange 250 EST20 Bar FLTB ASA 150 | Q124: 10 | R124: 0 | S124: =Q124-R124 -> 10 | T124: 0 | U124: 3 | V124: 3 | W124: =U124*V124 -> 9 | X124: =S124/W124 -> 1.111111111 | Y124: 0.17 days | Z124: 2025-05-21T10:40:00 | AA124: =Z124+X124 -> 2025-05-22T13:20:00
B125: CH | E125: 16P000820 | G125: Rotating Machine 8 | I125: Desalination Plant El Alamein | J125: FL 150 EST20 FLPL PN10 | Q125: 5 | R125: 0 | S125: =Q125-R125 -> 5 | T125: 0 | U125: 3 | V125: 3 | W125: =U125*V125 -> 9 | X125: =S125/W125 -> 0.5555555556 | Y125: 0.17 days | Z125: 2025-05-22T13:20:00 | AA125: =Z125+X125 -> 2025-05-23T02:40:00
B126: CH | E126: 16P000820 | G126: Rotating Machine 8 | I126: Desalination Plant El Alamein | J126: FL 250 EST12.5 FLPL PN10 | Q126: 6 | R126: 0 | S126: 6 | T126: 0 | U126: 3 | V126: 3 | W126: 9 | X126: 0.6666666667 | Y126: 0.17 days | Z126: 2025-05-23T02:40:00 | AA126: =Z126+X126 -> 2025-05-23T18:40:00
B127: CH | E127: 16P000744 | G127: Rotating Machine 8 | I127: Ohaji South Project | J127: Flange 50 EST40 Bar FLTB ASA 150 | Q127: 19 | R127: 0 | S127: 19 | T127: 0 | U127: 3 | V127: 3 | W127: 9 | X127: =S127/W127 -> 2.111111111 | Y127: 0.17 days | Z127: 2025-05-23T18:40:00 | AA127: =Z127+X127 -> 2025-05-25T21:20:00
B128: CH | E128: 16P000744 | G128: Rotating Machine 8 | I128: Ohaji South Project | J128: Flange 100 EST25 Bar FLTB ASA 150 | Q128: 14 | R128: 0 | S128: 14 | T128: 0 | U128: 3 | V128: 3 | W128: 9 | X128: 1.555555556 | Y128: 0.17 days | Z128: 2025-05-25T21:20:00 | AA128: =Z128+X128 -> 2025-05-27T10:40:00
B129: CH | E129: 16P000744 | G129: Rotating Machine 8 | I129: Ohaji South Project | J129: Flange Blind 50 EST32 Bar FLFL ASA 150 | Q129: 1 | R129: 0 | S129: 1 | T129: 0 | U129: 3 | V129: 3 | W129: 9 | X129: 0.1111111111 | Y129: 0.17 days | Z129: 2025-05-27T10:40:00 | AA129: =Z129+X129 -> 2025-05-27T13:20:00
B130: CH | E130: 16P000744 | G130: Rotating Machine 8 | I130: Ohaji South Project | J130: Flange Blind 25 EST32 Bar FLFL ASA 150 | Q130: 8 | R130: 0 | S130: 8 | T130: 0 | U130: 3 | V130: 3 | W130: 9 | X130: 0.8888888889 | Y130: 0.17 days | Z130: 2025-05-27T13:20:00 | AA130: =Z130+X130 -> 2025-05-28T10:40:00
B131: CH | E131: 16P000744 | G131: Rotating Machine 8 | I131: Ohaji South Project | J131: Flange 80 EST32 Bar FLTB ASA 150 | Q131: 29 | R131: 0 | S131: 29 | T131: 0 | U131: 3 | V131: 3 | W131: 9 | X131: 3.222222222 | Y131: 0.17 days | Z131: 2025-05-28T10:40:00 | AA131: =Z131+X131 -> 2025-05-31T16:00:00
B132: CH | E132: 16P000744 | G132: Rotating Machine 8 | I132: Ohaji South Project | J132: Flange 25 EST50 Bar FLTB ASA 150 | Q132: 4 | R132: 0 | S132: 4 | T132: 0 | U132: 3 | V132: 3 | W132: 9 | X132: 0.4444444444 | Y132: 0.17 days | Z132: 2025-05-31T16:00:00 | AA132: =Z132+X132 -> 2025-06-01T02:40:00
B133: CH | E133: 16P000641 | G133: Rotating Machine 8 | I133: Supply &install GRE Connection | J133: Flange 150 EST20 Bar FLTB ASA 150 | Q133: 2 | R133: 0 | S133: 2 | T133: 0 | U133: 3 | V133: 3 | W133: 9 | X133: 0.2222222222 | Y133: 0.17 days | Z133: 2025-06-01T02:40:00 | AA133: =Z133+X133 -> 2025-06-01T08:00:00
B134: CH | E134: 16P000882 | G134: Rotating Machine 8 | I134: GPC Alhamd Station | J134: FL Blnd 80 EST32 FLFL AS150 | Q134: 2 | R134: 0 | S134: 2 | T134: 0 | U134: 3 | V134: 3 | W134: 9 | X134: 0.2222222222 | Y134: 0.17 days | Z134: 2025-06-01T08:00:00 | AA134: =Z134+X134 -> 2025-06-01T13:20:00
B135: CH | E135: 16P000882 | G135: Rotating Machine 8 | I135: Produced Water Treatment | J135: FL Blnd 200 EST16 FLFL AS150 | Q135: 1 | R135: 0 | S135: 1 | T135: 0 | U135: 3 | V135: 3 | W135: 9 | X135: 0.1111111111 | Y135: 0.17 days | Z135: 2025-06-01T13:20:00 | AA135: =Z135+X135 -> 2025-06-01T16:00:00
B136: CH | E136: 16P000882 | G136: Rotating Machine 8 | I136: Produced Water Treatment | J136: FL Blnd 250 EST16 FLFL AS150 | Q136: 4 | R136: 0 | S136: 4 | T136: 0 | U136: 3 | V136: 3 | W136: 9 | X136: 0.4444444444 | Y136: 0.17 days | Z136: 2025-06-01T16:00:00 | AA136: =Z136+X136 -> 2025-06-02T02:40:00
B137: CH | E137: 16P000882 | G137: Rotating Machine 8 | I137: GPC Alhamd Station | J137: FL Blnd 150 EST20 FLFL AS150 | Q137: 1 | R137: 0 | S137: 1 | T137: 0 | U137: 3 | V137: 3 | W137: 9 | X137: 0.1111111111 | Y137: 0.17 days | Z137: 2025-06-02T02:40:00 | AA137: =Z137+X137 -> 2025-06-02T05:20:00
B138: CH | E138: 16P000882 | G138: Rotating Machine 8 | I138: GPC Alhamd Station | J138: FL 200 EST16 FLTB AS150 | Q138: 109 | R138: 0 | S138: 109 | T138: 0 | U138: 3 | V138: 3 | W138: 9 | X138: 12.11111111 | Y138: 0.17 days | Z138: 2025-06-02T05:20:00 | AA138: =Z138+X138 -> 2025-06-14T08:00:00
B139: CH | E139: 16P000882 | G139: Rotating Machine 8 | I139: GPC Alhamd Station | J139: FL 50 EST40 FLTB AS150 | Q139: 66 | R139: 0 | S139: 66 | T139: 0 | U139: 3 | V139: 3 | W139: 9 | X139: 7.333333333 | Y139: 0.17 days | Z139: 2025-06-14T08:00:00 | AA139: =Z139+X139 -> 2025-06-21T16:00:00
B140: CH | E140: 16P000882 | G140: Rotating Machine 8 | I140: GPC Alhamd Station | J140: FL 150 EST20 FLTB AS150 | Q140: 57 | R140: 0 | S140: 57 | T140: 0 | U140: 3 | V140: 3 | W140: 9 | X140: 6.333333333 | Y140: 0.17 days | Z140: 2025-06-21T16:00:00 | AA140: =Z140+X140 -> 2025-06-28
B141: CH | E141: 16P000882 | G141: Rotating Machine 8 | I141: GPC Alhamd Station | J141: FL 250 EST16 FLTB AS150 | Q141: 96 | R141: 0 | S141: 96 | T141: 0 | U141: 3 | V141: 3 | W141: 9 | X141: 10.66666667 | Y141: 0.17 days | Z141: 2025-06-28 | AA141: =Z141+X141 -> 2025-07-08T16:00:00
B142: CH | E142: 16P000882 | G142: Rotating Machine 8 | I142: GPC Alhamd Station | J142: FL 80 EST32 FLTB AS150 | Q142: 70 | R142: 0 | S142: 70 | T142: 0 | U142: 3 | V142: 3 | W142: 9 | X142: 7.777777778 | Y142: 0.17 days | Z142: 2025-07-08T16:00:00 | AA142: =Z142+X142 -> 2025-07-16T10:40:00
B143: CH | E143: 16P000882 | G143: Rotating Machine 8 | I143: GPC Alhamd Station | J143: FL 100 EST25 FLTB AS150 | Q143: 15 | R143: 0 | S143: 15 | T143: 0 | U143: 3 | V143: 3 | W143: 9 | X143: 1.666666667 | Y143: 0.17 days | Z143: 2025-07-16T10:40:00 | AA143: =Z143+X143 -> 2025-07-18T02:40:00
B144: CH | E144: 16P000882 | G144: Rotating Machine 8 | I144: GPC Alhamd Station | J144: FL 25 EST50 FLTB AS150 | Q144: 45 | R144: 0 | S144: 45 | T144: 0 | U144: 3 | V144: 3 | W144: 9 | X144: 5 | Y144: 0.17 days | Z144: 2025-07-18T02:40:00 | AA144: =Z144+X144 -> 2025-07-23T02:40:00
B145: CH | E145: 16P000882 | G145: Rotating Machine 8 | I145: GPC Alhamd Station | J145: FL Blnd 25 EST32 FLFL AS150 | Q145: 21 | R145: 0 | S145: 21 | T145: 0 | U145: 3 | V145: 3 | W145: 9 | X145: 2.333333333 | Y145: 0.17 days | Z145: 2025-07-23T02:40:00 | AA145: =Z145+X145 -> 2025-07-25T10:40:00
Q146: =SUM(Q109:Q145) -> 1317 | R146: =SUM(R109:R145) -> 180 | S146: =SUM(S109:S145) -> 1137 | T146: =SUM(T109:T145) -> 0 | X146: =SUM(X109:X145) -> 122.4444444 | Z146: =Z2 -> 2025-03-25 | AA146: =Z146+X146 -> 2025-07-25T10:40:00
G147: Rotating Machine 9(3 Shift) | H147: Rotating Machine 2 (3 Shift) | I147: Flanges (300 Ø-600Ø) - | M147: 0
B149: CA | E149: 40M001333 | G149: Rotating Machine 9 | I149: Linde - Wesseling_14 | J149: FL 300 EST16 FLTB PN16 | Q149: 10 | R149: 2 | S149: 8 | U149: 1 | V149: 3 | W149: =U149*V149 -> 3 | X149: =S149/W149 -> 2.666666667 | Y149: 4.36 days | Z149: =Z2 -> 2025-03-25 | AA149: =Z149+X149 -> 2025-03-27T16:00:00
B150: CA | E150: 40M001333 | G150: Rotating Machine 9 | I150: Linde - Wesseling_14 | J150: FL 400 EST16 FLTB PN16 | Q150: 10 | R150: 7 | S150: 3 | U150: 1 | V150: 3 | W150: =U150*V150 -> 3 | X150: =S150/W150 -> 1 | Y150: 4.36 days | Z150: =AA149 -> 2025-03-27T16:00:00 | AA150: =Z150+X150 -> 2025-03-28T16:00:00
B151: CA | E151: 40P000304 | G151: Rotating Machine 9 | I151: 6331 | J151: FL 300 EST12.5 FLCB PN6 | Q151: 1 | R151: 0 | S151: 1 | U151: 1 | V151: 3 | W151: 3 | X151: 0.3333333333 | Y151: 4.36 days | Z151: =AA150 -> 2025-03-28T16:00:00 | AA151: =Z151+X151 -> 2025-03-29
A152: AUH | B152: CH | C152: 01E012173 | D152: 3 | E152: 16P000849 | F152: 2025-01-30 | G152: Rotating Machine 9 | I152: Fertial Annaba- UAN ligne | J152: Flange STD 350 EST20 Bar FLCB PN 10 | K152: D65022977 | Q152: 20 | R152: 0 | S152: =Q152-R152 -> 20 | T152: 0 | U152: 1 | V152: 3 | W152: =U152*V152 -> 3 | X152: =S152/W152 -> 6.666666667 | Y152: 4.36 days | Z152: 2025-03-29 | AA152: =Z152+X152 -> 2025-04-04T16:00:00
A153: AUH | B153: CH | C153: 01E012173 | D153: 1 | E153: 16P000820 | F153: 2025-02-05 | G153: Rotating Machine 9 | I153: Desalination Plant El Alamein | J153: FL 300 EST12.5 FLPL PN10 | K153: D65022986 | Q153: 3 | R153: 0 | S153: =Q153-R153 -> 3 | T153: 0 | U153: 1 | V153: 3 | W153: =U153*V153 -> 3 | X153: =S153/W153 -> 1 | Y153: 2.86 days | Z153: 2025-04-04T16:00:00 | AA153: =Z153+X153 -> 2025-04-05T16:00:00
A154: AUH | B154: CH | C154: 01E012173 | D154: 4 | E154: 16P000882 | F154: 2025-02-07 | G154: Rotating Machine 9 | I154: Produced Water Treatment | J154: FL Blnd 300 EST16 FLFL AS150 | K154: D65022988 | Q154: 6 | R154: 0 | S154: 6 | T154: 0 | U154: 1 | V154: 3 | W154: 3 | X154: 2 | Y154: 5.71 days | Z154: 2025-04-05T16:00:00 | AA154: =Z154+X154 -> 2025-04-07T16:00:00
A155: AUH | B155: CH | C155: 01E012173 | D155: 4 | E155: 16P000882 | F155: 2025-02-20 | G155: Rotating Machine 9 | I155: GPC Alhamd Station | J155: FL 300 EST16 FLTB AS150 | K155: D65022989 | Q155: 43 | R155: 0 | S155: 43 | T155: 0 | U155: 1 | V155: 3 | W155: 3 | X155: 14.33333333 | Y155: 7.14 days | Z155: 2025-04-07T16:00:00 | AA155: =Z155+X155 -> 2025-04-22
Q156: =SUM(Q149:Q155) -> 93 | R156: =SUM(R149:R155) -> 9 | S156: =SUM(S149:S155) -> 84 | T156: =SUM(T149:T155) -> 0 | U156: 1 | V156: 3 | W156: 3 | X156: =SUM(X149:X155) -> 28 | Z156: =Z2 -> 2025-03-25 | AA156: =Z156+X156 -> 2025-04-22
